Workbook

Sheet ①交付申請書
A1: 様式第１号（第６条関係）
A3: 令和７年度第３回埼玉県障害福祉サービス事業所等光熱費等高騰対策
A4: 支援事業補助金交付申請書
A6: 第 号
A7: 令和 年 月 日
A9: （宛先）
A10: 埼玉県知事
A12: （申請者）
A13: 所 在 地
A14: 法人等の名称
A15: 代表者職氏名
A18: 下記により、令和７年度第３回埼玉県障害福祉サービス事業所等光熱費等高騰対策支援
A19: 事業補助金の交付を受けたいので、補助金等の交付手続等に関する規則第４条の規定によ
A20: り、関係書類を添えて申請します。
A22: 記
A24: １ 補助金交付申請額 | D24: 金 | E24: ='②-1申請額算出内訳（入所支援施設） (2)'!M27+'②-2申請額算出内訳 （共同生活援助系) (2)'!N27+'②-3申請額算出内訳 (児・者通所系) (2)'!N27+'②-4申請額算出内訳 (児・者訪問系)'!L27 -> 0 | G24: 円
A26: ２ 申請額算出内訳 | D26: 別紙１のとおり
A28: ３ 口座振込申出書 | D28: 別紙２のとおり
A30: ４ 光熱費に係る種別の申出書 | D30: 別紙３のとおり
A32: ５ 申請に係る施設・事業所の事業開始を確認できる書類
A33: （ ※指定申請書の写し等を添付）
E34: 【連絡先】
E35: 部署名
E36: 担当者氏名
E37: 電話番号
E38: e-mail

Sheet ②-1申請額算出内訳（入所支援施設） (2)
A1: 別紙１－１（児・者入所支援施設） | H1: 申請者(法人）名： | J1: =①交付申請書!F14 -> 0
A3: 申 請 額 算 出 内 訳
A6: № | B6: 事業所番号 | C6: 施設・事業所名 | D6: 住所 （市・町名） | E6: 住所２（区名以下） | F6: サービス種別 | G6: 事業開始日 | H6: 交付対象数（A） 入所施設 ➡ 定員数 | I6: 交付単位 人 事業所 住居 | J6: ガス | K6: 補助単価 (B) | L6: プロパンガスの場合、控除 | M6: 申請額 (A×B)
A7: 記入例 1 | B7: 2222222222 | C7: 世界埼玉にゅうしょ施設 | D7: 縄文市 | E7: 南区まがたま町１－２－３ | F7: 福祉型障害児入所施設 | G7: 2044-01-01 | H7: 55 | I7: 人 | J7: プロパンガス | K7: =VLOOKUP(F7&J7,食事提供加算有!A:E,5,FALSE) -> 45100 | L7: =VLOOKUP(F7&J7,食事提供加算有!A:F,6,FALSE) -> 3200 | M7: =H7*K7-L7 -> 2477300
A8: 記入例２ | B8: 1111222222 | C8: 川口にゅうしょ施設 | D8: AB市 | E8: 南区南町１－２－３ | F8: 医療型障害児入所施設 | G8: 2016-01-01 | H8: 40 | I8: 人 | J8: プロパンガス | K8: =VLOOKUP(F8&J8,食事提供加算有!A:E,5,FALSE) -> 45100 | L8: =VLOOKUP(F8&J8,食事提供加算有!A:F,6,FALSE) -> 3200 | M8: =H8*K8-L8 -> 1800800
A9: 1 | M9: =H9*K9-L9 -> 0
A10: 2 | M10: =H10*K10-L10 -> 0
A11: 3
A12: 4
A13: 5 | M13: =H13*K13-L13 -> 0
A14: 6
A15: 7 | M15: 0
A16: 8 | M16: 0
A17: 9 | M17: 0
A18: 10 | M18: 0
A19: 11 | M19: 0
A20: 12 | M20: 0
A21: 13 | M21: 0
A22: 14 | M22: 0
A23: 15 | M23: 0
A24: 16 | M24: 0
A25: 17 | M25: 0
A26: 18 | M26: 0
L27: 合計 | M27: =SUM(M9:M26) -> 0
A29: ※事業所番号が未記入あるいは誤った番号を記載した場合は対象外となるので誤記などないよう十分に注意すること。
A30: ※「サービス種別」欄は、補助要綱別表１に掲げる種別を記載すること。
A31: ※「補助単価」欄は、補助要綱別表２に掲げる区分ごとの単価を記載すること。

Sheet ②-2申請額算出内訳 （共同生活援助系) (2)
A1: 別紙１－２（共同生活援助系） | H1: 申請者(法人）名： | J1: =①交付申請書!F14 -> 0
A3: 申 請 額 算 出 内 訳
A6: № | B6: 事業所番号 | C6: グループホームの住居名 ※住居毎に記載 | D6: 住所 （市・町名） | E6: 住所２（区名以下） | F6: サービス種別 | G6: 事業開始日 | H6: 交付対象数（A） ＧＨ➡１住居の定員数（1住居5人以下の場合は一律6人） | I6: 交付単位 人 | J6: 電力 （訪問、入所施設は記入不要） | K6: ガス | L6: 補助単価 (B) | M6: プロパンガスの場合、控除 | N6: 申請額 (A×B)
A7: 記入例 | B7: 1111111111 | C7: 大宮グループホーム１ | D7: 大和市 | E7: 北区さいたま町１－２－３ | F7: 共同生活援助（介護サービス包括型） | G7: 2043-01-01 | H7: 10 | I7: 人 | J7: 高圧 | K7: 都市ガス | L7: =VLOOKUP(F7&J7&K7,食事提供加算無!A:E,5,FALSE) -> 6100 | M7: =VLOOKUP(F7&J7&K7,食事提供加算無!A:F,6,FALSE) -> 0 | N7: =H7*L7-M7 -> 61000
A8: 記入例 ２ | B8: 2222222222 | C8: 大宮グループホーム２ | D8: 大和市 | E8: 南区まがたま町１－２－３ | F8: 共同生活援助（介護サービス包括型） | G8: 2044-01-01 | H8: 6 | I8: 人 | J8: 低圧 | K8: プロパンガス | L8: =VLOOKUP(F8&J8&K8,食事提供加算無!A:E,5,FALSE) -> 4900 | M8: =VLOOKUP(F8&J8&K8,食事提供加算無!A:F,6,FALSE) -> 3200 | N8: 26200
A9: 1 | N9: =H9*L9-M9 -> 0 | T9: 共同生活援助（指定共同生活援助）
A10: 2 | T10: 共同生活援助（日中サービス支援型）
A11: 3 | T11: 共同生活援助（外部サービス利用型）
A12: 4
A13: 5
A14: 6
A15: 7
A16: 8
A17: 9
A18: 10
A19: 11
A20: 12 | N20: =H20*L20-M20 -> 0
A21: 13 | N21: =H21*L21-M21 -> 0
A22: 14 | N22: 0
A23: 15 | N23: 0
A24: 16 | N24: 0
A25: 17 | N25: 0
A26: 18
L27: 合計 | N27: =SUM(N9:N26) -> 0
A29: ※事業所番号が未記入あるいは誤った番号を記載した場合は対象外となるので誤記などないよう十分に注意すること。
A30: ※「サービス種別」欄は、補助要綱別表１に掲げる種別を記載すること。
A31: ※「補助単価」欄は、補助要綱別表２に掲げる区分ごとの単価を記載すること。

Sheet ②-3申請額算出内訳 (児・者通所系) (2)
A1: 別紙１－３（児・者通所系） | H1: 申請者(法人）名： | J1: =①交付申請書!F14 -> 0
A3: 申 請 額 算 出 内 訳
A6: № | B6: 事業所番号 | C6: 施設・事業所名 | D6: 住所 （市・町名） | E6: 住所２（区名以下） | F6: サービス種別 | G6: 事業開始日 | H6: 交付対象数（A） 通所・訪問➡ 事業所数 | I6: 交付単位 人 事業所 住居 | J6: 食事提供体制加算 （児通所は児童発達支援センターのみ。食事提供加算を請求している場合） | K6: 電力 （訪問、入所施設は記入不要） | L6: ガス | M6: 補助単価 (B) | N6: 申請額 (A×B)
A7: 記入例 | B7: 1111111111 | C7: 世界さいたま事業所 | D7: 大和市 | E7: 北区さいたま町１－２－３ | F7: 就労移行支援 | G7: 2043-01-01 | H7: 1 | I7: 事業所 | J7: 有 | K7: 高圧 | L7: 都市ガス | M7: =VLOOKUP(F7&K7&L7,食事提供加算有!A:F,5,FALSE) -> 469500 | N7: =H7*M7 -> 469500
A8: 記入例 ２ | B8: 2222222222 | C8: さいたま放課後等デイサービス | D8: 縄文市 | E8: 南区まがたま町１－２－３ | F8: 児童発達支援 | G8: 2044-01-01 | H8: 1 | I8: 事業所 | J8: 無 | K8: 低圧 | L8: プロパンガス | M8: =VLOOKUP(F8&K8&L8,食事提供加算無!A:F,5,FALSE) -> 13350 | N8: =H8*M8 -> 13350
A9: 1 | N9: =H9*M9 -> 0 | S9: 生活介護
A10: 2 | N10: =H10*M10 -> 0 | S10: 短期入所（単独型）
A11: 3 | S11: 療養介護
A12: 4 | S12: 自立訓練（機能訓練）
A13: 5 | S13: 自立訓練（生活訓練）
A14: 6 | N14: =H14*M14 -> 0 | S14: 自立訓練（宿泊型）
A15: 7 | N15: 0 | S15: 就労移行支援
A16: 8 | N16: 0 | S16: 就労継続支援Ａ型
A17: 9 | N17: 0 | S17: 就労継続支援Ｂ型
A18: 10 | N18: 0 | S18: 児童発達支援
A19: 11 | N19: 0 | S19: 児童発達支援センター
A20: 12 | N20: 0 | S20: 医療型児童発達支援センター
A21: 13 | N21: 0 | S21: 放課後等デイサービス
A22: 14 | N22: 0
A23: 15 | N23: 0
A24: 16 | N24: 0
A25: 17 | N25: 0
A26: 18 | N26: 0
M27: 合計 | N27: =SUM(N9:N26) -> 0
A29: ※事業所番号が未記入あるいは誤った番号を記載した場合は対象外となるので誤記などないよう十分に注意すること。
A30: ※「サービス種別」欄は、補助要綱別表１に掲げる種別を記載すること。
A31: ※「補助単価」欄は、補助要綱別表２に掲げる区分ごとの単価を記載すること。

Sheet ②-4申請額算出内訳 (児・者訪問系)
A1: 別紙１－４（児・者訪問系） | H1: 申請者(法人）名： | J1: =①交付申請書!F14 -> 0
A3: 申 請 額 算 出 内 訳
A6: № | B6: 事業所番号 | C6: 施設・事業所名 | D6: 住所 （市・町名） | E6: 住所２（区名以下） | F6: サービス種別 | G6: 事業開始日 | H6: 交付対象数（A） 通所・訪問➡ 事業所数 | I6: 交付単位 人 事業所 住居 | J6: ガス | K6: 補助単価 (B) | L6: 申請額 (A×B)
A7: 記入例 | B7: 1111111111 | C7: 世界さいたま事業所 | D7: 大和市 | E7: 北区さいたま町１－２－３ | F7: 居宅介護 | G7: 2043-01-01 | H7: 1 | I7: 事業所 | J7: 都市ガス | K7: =_xlfn.IFNA(VLOOKUP(F7&J7,食事提供加算無!$A$9:$E$24,5,FALSE),"該当なし") -> 4100 | L7: =K7 -> 4100
A8: 記入例 ２ | B8: 2222222222 | C8: さいたま放課後等訪問支援 | D8: 縄文市 | E8: 南区まがたま町１－２－３ | F8: 保育所等訪問支援 | G8: 2044-01-01 | H8: 1 | I8: 事業所 | J8: プロパンガス | K8: =_xlfn.IFNA(VLOOKUP(F8&J8,食事提供加算無!$A$9:$E$24,5,FALSE),"該当なし") -> 3600 | L8: 3600
A9: 1 | K9: =_xlfn.IFNA(VLOOKUP(F9&J9,食事提供加算無!$A$9:$E$24,5,FALSE),"") ->  | L9: =K9 ->  | O9: 居宅介護
A10: 2 | K10: =_xlfn.IFNA(VLOOKUP(F10&J10,食事提供加算無!$A$9:$E$24,5,FALSE),"") ->  | L10: =K10 ->  | O10: 重度訪問介護
A11: 3 | K11: =_xlfn.IFNA(VLOOKUP(F11&J11,食事提供加算無!$A$9:$E$24,5,FALSE),"") ->  | O11: 同行援護
A12: 4 | K12: =_xlfn.IFNA(VLOOKUP(F12&J12,食事提供加算無!$A$9:$E$24,5,FALSE),"") ->  | O12: 行動援護
A13: 5 | K13: =_xlfn.IFNA(VLOOKUP(F13&J13,食事提供加算無!$A$9:$E$24,5,FALSE),"") ->  | O13: 重度障害者等包括支援
A14: 6 | K14: =_xlfn.IFNA(VLOOKUP(F14&J14,食事提供加算無!$A$9:$E$24,5,FALSE),"") ->  | O14: 居宅訪問型児童発達支援
A15: 7 | K15: =_xlfn.IFNA(VLOOKUP(F15&J15,食事提供加算無!$A$9:$E$24,5,FALSE),"") ->  | O15: 保育所等訪問支援
A16: 8 | K16: =_xlfn.IFNA(VLOOKUP(F16&J16,食事提供加算無!$A$9:$E$24,5,FALSE),"") ->  | O16: 児訪問系
A17: 9 | K17: =_xlfn.IFNA(VLOOKUP(F17&J17,食事提供加算無!$A$9:$E$24,5,FALSE),"") -> 
A18: 10 | K18: =_xlfn.IFNA(VLOOKUP(F18&J18,食事提供加算無!$A$9:$E$24,5,FALSE),"") -> 
A19: 11 | K19: =_xlfn.IFNA(VLOOKUP(F19&J19,食事提供加算無!$A$9:$E$24,5,FALSE),"") -> 
A20: 12 | K20: =_xlfn.IFNA(VLOOKUP(F20&J20,食事提供加算無!$A$9:$E$24,5,FALSE),"") -> 
A21: 13 | K21: =_xlfn.IFNA(VLOOKUP(F21&J21,食事提供加算無!$A$9:$E$24,5,FALSE),"") -> 
A22: 14 | K22: =_xlfn.IFNA(VLOOKUP(F22&J22,食事提供加算無!$A$9:$E$24,5,FALSE),"") -> 
A23: 15 | K23: =_xlfn.IFNA(VLOOKUP(F23&J23,食事提供加算無!$A$9:$E$24,5,FALSE),"") -> 
A24: 16 | K24: =_xlfn.IFNA(VLOOKUP(F24&J24,食事提供加算無!$A$9:$E$24,5,FALSE),"") -> 
A25: 17 | K25: =_xlfn.IFNA(VLOOKUP(F25&J25,食事提供加算無!$A$9:$E$24,5,FALSE),"") -> 
A26: 18 | K26: =_xlfn.IFNA(VLOOKUP(F26&J26,食事提供加算無!$A$9:$E$24,5,FALSE),"") -> 
K27: 合計 | L27: =SUM(L9:L26) -> 0
A29: ※事業所番号が未記入あるいは誤った番号を記載した場合は対象外となるので誤記などないよう十分に注意すること。
A30: ※「サービス種別」欄は、補助要綱別表１に掲げる種別を記載すること。
A31: ※「補助単価」欄は、補助要綱別表２に掲げる区分ごとの単価を記載すること。

Sheet ③口座振替申出書
A1: 別紙２
A3: 令和７年度第３回埼玉県障害福祉サービス事業所等光熱費等高騰対策支援事業
A4: 補助金口座振込申出書
A6: （宛先）
A7: 埼玉県知事 大野 元裕
G9: 住 所 | I9: =①交付申請書!F13 -> 0
G10: 法人等の名称 | I10: =①交付申請書!F14 -> 0
G11: 代表者職氏名 | I11: =①交付申請書!F15 -> 0
A13: 令和 年 月 日付けで申請した標記補助金について、交付決定を受けた
A14: 場合、下記口座に振り込んでください。
A15: 記
C18: 金融機関名 | I18: 金融機関コード
C19: 支店名 | I19: 支店コード
C20: 口座種別 | I20: 口座番号
C21: 口座名義(漢字)
C22: 口座名義(カナ)
A24: ※補助金の振込を希望する金融機関の口座名義、金融機関名、支店名、及び口座 番号等を確認できる通帳等の写しを添付すること。

Sheet ④口座の写し添付用シート

Sheet ⑤光熱費申出書
A1: 別紙３
A3: 令和７年度第３回埼玉県障害福祉サービス事業所（又は住居）等光熱費等高騰対策
A4: 支援事業補助金光熱費に係る種別の申出書
A6: （宛先）
A7: 埼玉県知事 大野 元裕
G9: 住 所 | I9: =①交付申請書!F13 -> 0
G10: 法人等の名称 | I10: =①交付申請書!F14 -> 0
G11: 代表者職氏名 | I11: =①交付申請書!F15 -> 0
A13: 令和 年 月 日付けで申請した標記補助金について、事業所（又は住居）等の光熱費の種別
A14: は下記のとおりです。
A16: 記
A17: １ 令和５年度又は令和７年度に補助金を申請した事業所（又は住居）
C18: 光熱費の契約内容に変更無の場合、添付書類（電気、ガスの明細書等）の提出は不要です。
C19: 事業所（又は住居）名
C20: 変更の有無
C22: 事業所（又は住居）名
C23: 変更の有無
C25: 事業所（又は住居）名
C26: 変更の有無
C28: 事業所（又は住居）名
C29: 変更の有無
C31: 事業所（又は住居）名
C32: 変更の有無
C34: 事業所（又は住居）名
C35: 変更の有無
C37: 事業所（又は住居）名
C38: 変更の有無
C40: 事業所（又は住居）名
C41: 変更の有無
C43: 事業所（又は住居）名
C44: 変更の有無
C46: 事業所（又は住居）名
C47: 変更の有無
A49: ２ これまでの補助金申請時から光熱費に変更有の事業所（又は住居）、又は新たに申請する
C50: 事業所（又は住居）（下記に種別を記載するとともに、添付書類を提出してください。）
C51: 事業所（又は住居）名
C52: 電 気
C53: ガ ス
C55: 事業所（又は住居）名
C56: 電 気
C57: ガ ス
C59: 事業所（又は住居）名
C60: 電 気
C61: ガ ス
C63: 事業所（又は住居）名
C64: 電 気
C65: ガ ス
C67: 事業所（又は住居）名
C68: 電 気
C69: ガ ス
C71: 事業所（又は住居）名
C72: 電 気
C73: ガ ス
C75: 事業所（又は住居）名
C76: 電 気
C77: ガ ス
C79: 事業所（又は住居）名
C80: 電 気
C81: ガ ス
C83: 事業所（又は住居）名
C84: 電 気
C85: ガ ス
C87: 事業所（又は住居）名
C88: 電 気
C89: ガ ス
A91: ※１ 施設入所支援（障害者入所支援施設、福祉型障害児入所施設および医療型障害児入所施設。）、訪問系（居宅介護、重度訪問介護、同行援護、行動援護および重度障害者等包括支援）および児訪問系（児訪問系、居宅訪問型児童発達支援および保育所等訪問支援。）は電気の欄は記入は不要、ガスのみ記入すること。
A92: ※２ 電気、ガスの直近の明細書の写しを添付すること。
A93: ※３ 行が足りないない場合、適宜追加してください。

Sheet ⑥電気・ガスの契約種別がわかるもの
A2: １ 電力 （高圧 又は 低圧 が分かるもの）
A31: ２ ガス （都市ガス 又は プロパンガス か分かるもの）

Sheet 請求書
A1: 参考
A3: 令和７年度第３回埼玉県障害福祉サービス事業所等光熱費等高騰対策支援事業
A4: 補助金請求書
A7: =①交付申請書!A7 -> 令和 年 月 日
A9: （宛先）
A10: 埼玉県知事
A12: （申請者）
A13: 所 在 地 | F13: =①交付申請書!F13 -> 0
A14: 法人等の名称 | F14: =①交付申請書!F14 -> 0
A15: 代表者職氏名 | F15: =①交付申請書!F15 -> 0
A18: 下記により、令和７年度第３回埼玉県障害福祉サービス事業所等光熱費等高騰
A19: 対策支援事業補助金の交付確定通知を受けたので、該当する補助金額を請求します。
A22: 記
A24: １ 補助金請求額 | D24: 金 | E24: =①交付申請書!E24 -> 0 | G24: 円
E32: 【連絡先】
E33: 部署名 | F33: =①交付申請書!F35 -> 0
E34: 担当者氏名 | F34: =①交付申請書!F36 -> 0
E35: 電話番号 | F35: =①交付申請書!F37 -> 0
E36: e-mail | F36: =①交付申請書!F38 -> 0

Sheet 交付金checklist
W1: No. | Z1: =IF([5]基本情報入力シート!R11="","",[5]基本情報入力シート!R11) -> 
A4: 令和７年度第３回埼玉県障害福祉サービス事業所等光熱費等高騰対策支援事業補助金チェックリスト
A6: ◎ 基本情報
A8: フリガナ
A9: 法人名 | G9: =①交付申請書!F14 -> 0
A10: 法人所在地 | G10: 〒
G11: =①交付申請書!F13 -> 0
A13: フリガナ
A14: 書類作成担当者 | X14: 電話番号
A15: 連絡先 | G15: FAX番号 | T15: E-mail
A16: ※連絡先は必ず日中連絡できる電話番号を記載すること。不明な点等があれば事務局から問い合わせがあります。
B17: 以下の点を確認し、全ての項目にチェックして下さい。
B18: ※（チェックできない項目があれば申請内容の修正が必要です。見直してください）
B19: 確認項目
C20: 令和８年１月１日時点で県から障害福祉サービス事業所、障害児者支援施設の指定を受けています。
C21: 令和８年１月１日時点で事業の休止、廃止はしていません。
C22: 補助金申請に必要な資料はすべて添付しています。
C23: 申請額算出内訳表には、必要な項目がすべて記載しています。
C24: （提供サービスが異なっていても同じ住所地の事業所は申請できません。） 同じ住所の事業所で２重申請はしていません。
C25: （提供サービスが異なっていても同じ住所地の事業所は申請できません。高齢者等に対する訪問介護等も含みます。） 同じ住所の事業所で２重申請はしていません。
C26: （訪問系及び入所支援施設は確認不要） 電力（高圧又は低圧）の選択に誤りはありません。
C27: ガス（都市ガス又はプロパンガス）の選択に誤りはありません。
C28: （障害児通所で食事有を選択する場合） 児童発達支援センターであり、令和８年１月１日時点で食事提供加算を請求しており、３月３１日まで継続する。
B30: ※ | C30: 各証明資料は、指定権者からの求めがあった場合には、速やかに提出すること。
B31: ※ | C31: 本表への虚偽記載の他、交付金の請求に関して不正があった場合は、指定の取消しや補助金額の返還を求めることになります。
B34: 記載内容及び添付資料に虚偽がないことを証明するとともに、記載内容を証明する資料を適切に保管していることを誓約します。
B36: 令和 | F36: 年 | I36: 月 | L36: 日 | N36: 法人名 | Q36: =①交付申請書!F14 -> 0
N37: 代表者 | Q37: 職名 | X37: 氏名
B42: .

Sheet 食事提供加算有 (hidden)
B1: 通所系 | C1: 支給単位 | D1: 高圧かつ都市ガスを利用している場合 | E1: 高圧かつプロパンガスを利用している場合 | F1: 低圧かつ都市ガスを利用している場合 | G1: 低圧かつプロパンガスを利用している場合 | H1: 児・者 入所支援施設
B2: 生活介護 | C2: １事業所当たり | D2: =食事提供加算無!D28+408400 -> 469500 | E2: =食事提供加算無!E28+408400 -> 482000 | F2: =食事提供加算無!F28+408400 -> 425800 | G2: =食事提供加算無!G28+408400 -> 438300 | H2: 障害者入所支援施設
B3: 短期入所（単独型） | H3: 福祉型障害児入所施設
H4: 医療型障害児入所施設
B5: 自立訓練（機能訓練） | J5: 218100 | K5: 219500 | L5: 199900 | M5: 201300
B6: 自立訓練（生活訓練）
B7: 自立訓練（宿泊型） | J7: 469500
B8: 就労移行支援 | J8: 482000
B9: 就労継続支援Ａ型 | J9: 425800
B10: 就労継続支援Ｂ型 | J10: 438300
A12: key | B12: 通所系 | C12: 高圧・低圧 | D12: 都市ガス・プロパンガス | E12: 金額
A13: =B13&C13&D13 -> 生活介護高圧都市ガス | B13: 生活介護 | C13: 高圧 | D13: 都市ガス | E13: 469500
A14: =B14&C14&D14 -> 生活介護高圧プロパンガス | B14: 生活介護 | C14: 高圧 | D14: プロパンガス | E14: 482000
A15: 生活介護低圧都市ガス | B15: 生活介護 | C15: 低圧 | D15: 都市ガス | E15: 425800
A16: 生活介護低圧プロパンガス | B16: 生活介護 | C16: 低圧 | D16: プロパンガス | E16: 438300
A17: 短期入所（単独型）高圧都市ガス | B17: 短期入所（単独型） | C17: 高圧 | D17: 都市ガス | E17: 469500
A18: 短期入所（単独型）高圧プロパンガス | B18: 短期入所（単独型） | C18: 高圧 | D18: プロパンガス | E18: 482000
A19: 短期入所（単独型）低圧都市ガス | B19: 短期入所（単独型） | C19: 低圧 | D19: 都市ガス | E19: 425800
A20: 短期入所（単独型）低圧プロパンガス | B20: 短期入所（単独型） | C20: 低圧 | D20: プロパンガス | E20: 438300
A21: 自立訓練（機能訓練）高圧都市ガス | B21: 自立訓練（機能訓練） | C21: 高圧 | D21: 都市ガス | E21: 469500
A22: 自立訓練（機能訓練）高圧プロパンガス | B22: 自立訓練（機能訓練） | C22: 高圧 | D22: プロパンガス | E22: 482000
A23: 自立訓練（機能訓練）低圧都市ガス | B23: 自立訓練（機能訓練） | C23: 低圧 | D23: 都市ガス | E23: 425800
A24: 自立訓練（機能訓練）低圧プロパンガス | B24: 自立訓練（機能訓練） | C24: 低圧 | D24: プロパンガス | E24: 438300
A25: 自立訓練（生活訓練）高圧都市ガス | B25: 自立訓練（生活訓練） | C25: 高圧 | D25: 都市ガス | E25: 469500
A26: 自立訓練（生活訓練）高圧プロパンガス | B26: 自立訓練（生活訓練） | C26: 高圧 | D26: プロパンガス | E26: 482000
A27: 自立訓練（生活訓練）低圧都市ガス | B27: 自立訓練（生活訓練） | C27: 低圧 | D27: 都市ガス | E27: 425800
A28: 自立訓練（生活訓練）低圧プロパンガス | B28: 自立訓練（生活訓練） | C28: 低圧 | D28: プロパンガス | E28: 438300
A29: 自立訓練（宿泊型）高圧都市ガス | B29: 自立訓練（宿泊型） | C29: 高圧 | D29: 都市ガス | E29: 469500
A30: 自立訓練（宿泊型）高圧プロパンガス | B30: 自立訓練（宿泊型） | C30: 高圧 | D30: プロパンガス | E30: 482000
A31: 自立訓練（宿泊型）低圧都市ガス | B31: 自立訓練（宿泊型） | C31: 低圧 | D31: 都市ガス | E31: 425800
A32: 自立訓練（宿泊型）低圧プロパンガス | B32: 自立訓練（宿泊型） | C32: 低圧 | D32: プロパンガス | E32: 438300
A33: 就労移行支援高圧都市ガス | B33: 就労移行支援 | C33: 高圧 | D33: 都市ガス | E33: 469500
A34: 就労移行支援高圧プロパンガス | B34: 就労移行支援 | C34: 高圧 | D34: プロパンガス | E34: 482000
A35: 就労移行支援低圧都市ガス | B35: 就労移行支援 | C35: 低圧 | D35: 都市ガス | E35: 425800
A36: 就労移行支援低圧プロパンガス | B36: 就労移行支援 | C36: 低圧 | D36: プロパンガス | E36: 438300
A37: 就労継続支援Ａ型高圧都市ガス | B37: 就労継続支援Ａ型 | C37: 高圧 | D37: 都市ガス | E37: 469500
A38: 就労継続支援Ａ型高圧プロパンガス | B38: 就労継続支援Ａ型 | C38: 高圧 | D38: プロパンガス | E38: 482000
A39: 就労継続支援Ａ型低圧都市ガス | B39: 就労継続支援Ａ型 | C39: 低圧 | D39: 都市ガス | E39: 425800
A40: 就労継続支援Ａ型低圧プロパンガス | B40: 就労継続支援Ａ型 | C40: 低圧 | D40: プロパンガス | E40: 438300
A41: =B41&C41&D41 -> 就労継続支援Ｂ型高圧都市ガス | B41: 就労継続支援Ｂ型 | C41: 高圧 | D41: 都市ガス | E41: 469500
A42: 就労継続支援Ｂ型高圧プロパンガス | B42: 就労継続支援Ｂ型 | C42: 高圧 | D42: プロパンガス | E42: 482000
A43: 就労継続支援Ｂ型低圧都市ガス | B43: 就労継続支援Ｂ型 | C43: 低圧 | D43: 都市ガス | E43: 425800
A44: 就労継続支援Ｂ型低圧プロパンガス | B44: 就労継続支援Ｂ型 | C44: 低圧 | D44: プロパンガス | E44: 438300
B48: 児通所系 | C48: 支給単位 | D48: 高圧かつ都市ガスを利用している場合 | E48: 低圧かつプロパンガスを利用している場合 | F48: 低圧かつ都市ガスを利用している場合 | G48: 低圧かつプロパンガスを利用している場合
B49: 児童発達支援センター | C49: １事業所当たり | D49: =食事提供加算無!D100+408400 -> 438950 | E49: =食事提供加算無!E100+408400 -> 443600 | F49: =食事提供加算無!F100+408400 -> 417100 | G49: =食事提供加算無!G100+408400 -> 421750
B51: 医療型児童発達支援センター
A54: key | B54: 通所系 | C54: 高圧・低圧 | D54: 都市ガス・プロパンガス | E54: 金額
A55: =B55&C55&D55 -> 児童発達支援センター高圧都市ガス | B55: 児童発達支援センター | C55: 高圧 | D55: 都市ガス | E55: 438950 | I55: 438950
A56: 児童発達支援センター高圧プロパンガス | B56: 児童発達支援センター | C56: 高圧 | D56: プロパンガス | E56: 443600 | I56: 443600
A57: 児童発達支援センター低圧都市ガス | B57: 児童発達支援センター | C57: 低圧 | D57: 都市ガス | E57: 417100 | I57: 417100
A58: 児童発達支援センター低圧プロパンガス | B58: 児童発達支援センター | C58: 低圧 | D58: プロパンガス | E58: 421750 | I58: 421750
A59: 医療型児童発達支援センター高圧都市ガス | B59: 医療型児童発達支援センター | C59: 高圧 | D59: 都市ガス | E59: 438950
A60: 医療型児童発達支援センター高圧プロパンガス | B60: 医療型児童発達支援センター | C60: 高圧 | D60: プロパンガス | E60: 443600
A61: 医療型児童発達支援センター低圧都市ガス | B61: 医療型児童発達支援センター | C61: 低圧 | D61: 都市ガス | E61: 417100
A62: 医療型児童発達支援センター低圧プロパンガス | B62: 医療型児童発達支援センター | C62: 低圧 | D62: プロパンガス | E62: 421750
B64: 児・者 入所支援施設 | C64: 支給単位 | D64: 都市ガスを利用している場合 | E64: プロパンガスを利用している場合
B65: 障害者入所支援施設 | C65: 定員１人当たり | D65: 44100 | E65: 45100
B66: 福祉型障害児入所施設
B67: 医療型障害児入所施設
A69: key | B69: 児・者 入所支援施設 | C69: 高圧・低圧 | D69: 都市ガス・プロパンガス | E69: 金額 | F69: プロパンガスの場合、控除
A70: =B70&D70 -> 障害者入所支援施設都市ガス | B70: 障害者入所支援施設 | C70: - | D70: 都市ガス | E70: 44100 | F70: 0 | I70: 44100
A71: =B71&D71 -> 障害者入所支援施設プロパンガス | B71: 障害者入所支援施設 | C71: - | D71: プロパンガス | E71: 45100 | F71: 3200 | I71: 45100
A72: 福祉型障害児入所施設都市ガス | B72: 福祉型障害児入所施設 | C72: - | D72: 都市ガス | E72: 44100 | F72: 0
A73: 福祉型障害児入所施設プロパンガス | B73: 福祉型障害児入所施設 | C73: - | D73: プロパンガス | E73: 45100 | F73: 3200
A74: 医療型障害児入所施設都市ガス | B74: 医療型障害児入所施設 | C74: - | D74: 都市ガス | E74: 44100 | F74: 0
A75: 医療型障害児入所施設プロパンガス | B75: 医療型障害児入所施設 | C75: - | D75: プロパンガス | E75: 45100 | F75: 3200

Sheet 食事提供加算無 (hidden)
B1: 訪問系 | C1: 支給単位 | D1: 都市ガスを利用している場合 | E1: プロパンガスを利用している場合
B2: 居宅介護 | C2: １事業所当たり | D2: 4100 | E2: 3600
B3: 重度訪問介護
B4: 同行援護
B5: 行動援護
B6: 重度障害者等包括支援
A8: key | B8: 訪問系 | C8: 高圧・低圧 | D8: 都市ガス・プロパンガス | E8: 金額
A9: =B9&D9 -> 居宅介護都市ガス | B9: 居宅介護 | C9: - | D9: 都市ガス | E9: 4100
A10: =B10&D10 -> 居宅介護プロパンガス | B10: 居宅介護 | C10: - | D10: プロパンガス | E10: 3600
A11: 重度訪問介護都市ガス | B11: 重度訪問介護 | C11: - | D11: 都市ガス | E11: 4100
A12: 重度訪問介護プロパンガス | B12: 重度訪問介護 | C12: - | D12: プロパンガス | E12: 3600
A13: 同行援護都市ガス | B13: 同行援護 | C13: - | D13: 都市ガス | E13: 4100
A14: 同行援護プロパンガス | B14: 同行援護 | C14: - | D14: プロパンガス | E14: 3600
A15: 行動援護都市ガス | B15: 行動援護 | C15: - | D15: 都市ガス | E15: 4100
A16: 行動援護プロパンガス | B16: 行動援護 | C16: - | D16: プロパンガス | E16: 3600
A17: 重度障害者等包括支援都市ガス | B17: 重度障害者等包括支援 | C17: - | D17: 都市ガス | E17: 4100
A18: 重度障害者等包括支援プロパンガス | B18: 重度障害者等包括支援 | C18: - | D18: プロパンガス | E18: 3600
A19: 児訪問系都市ガス | B19: 児訪問系 | C19: - | D19: 都市ガス | E19: 4100
A20: 児訪問系プロパンガス | B20: 児訪問系 | C20: - | D20: プロパンガス | E20: 3600
A21: 居宅訪問型児童発達支援都市ガス | B21: 居宅訪問型児童発達支援 | C21: - | D21: 都市ガス | E21: 4100
A22: 居宅訪問型児童発達支援プロパンガス | B22: 居宅訪問型児童発達支援 | C22: - | D22: プロパンガス | E22: 3600
A23: 保育所等訪問支援都市ガス | B23: 保育所等訪問支援 | C23: - | D23: 都市ガス | E23: 4100
A24: 保育所等訪問支援プロパンガス | B24: 保育所等訪問支援 | C24: - | D24: プロパンガス | E24: 3600
B27: 通所系 | C27: 支給単位 | D27: 高圧かつ都市ガスを利用している場合 | E27: 高圧かつプロパンガスを利用している場合 | F27: 低圧かつ都市ガスを利用している場合 | G27: 低圧かつプロパンガスを利用している場合
B28: 生活介護 | C28: １事業所当たり | D28: 61100 | E28: 73600 | F28: 17400 | G28: 29900
B29: 短期入所（単独型）
B30: 療養介護
B31: 自立訓練（機能訓練）
B32: 自立訓練（生活訓練）
B33: 自立訓練（宿泊型） | I33: 73600 | J33: 17400 | K33: 29900
B34: 就労移行支援
B35: 就労継続支援Ａ型
B36: 就労継続支援Ｂ型
A38: key | B38: 通所系 | C38: 高圧・低圧 | D38: 都市ガス・プロパンガス | E38: 金額
A39: =B39&C39&D39 -> 生活介護高圧都市ガス | B39: 生活介護 | C39: 高圧 | D39: 都市ガス | E39: 61100
A40: =B40&C40&D40 -> 生活介護高圧プロパンガス | B40: 生活介護 | C40: 高圧 | D40: プロパンガス | E40: 73600
A41: 生活介護低圧都市ガス | B41: 生活介護 | C41: 低圧 | D41: 都市ガス | E41: 17400
A42: 生活介護低圧プロパンガス | B42: 生活介護 | C42: 低圧 | D42: プロパンガス | E42: 29900
A43: =B43&C43&D43 -> 短期入所（単独型）高圧都市ガス | B43: 短期入所（単独型） | C43: 高圧 | D43: 都市ガス | E43: 61100
A44: =B44&C44&D44 -> 短期入所（単独型）高圧プロパンガス | B44: 短期入所（単独型） | C44: 高圧 | D44: プロパンガス | E44: 73600
A45: 短期入所（単独型）低圧都市ガス | B45: 短期入所（単独型） | C45: 低圧 | D45: 都市ガス | E45: 17400
A46: 短期入所（単独型）低圧プロパンガス | B46: 短期入所（単独型） | C46: 低圧 | D46: プロパンガス | E46: 29900
A47: =B47&C47&D47 -> 療養介護高圧都市ガス | B47: 療養介護 | C47: 高圧 | D47: 都市ガス | E47: 61100
A48: =B48&C48&D48 -> 療養介護高圧プロパンガス | B48: 療養介護 | C48: 高圧 | D48: プロパンガス | E48: 73600
A49: 療養介護低圧都市ガス | B49: 療養介護 | C49: 低圧 | D49: 都市ガス | E49: 17400
A50: 療養介護低圧プロパンガス | B50: 療養介護 | C50: 低圧 | D50: プロパンガス | E50: 29900
A51: =B51&C51&D51 -> 自立訓練（機能訓練）高圧都市ガス | B51: 自立訓練（機能訓練） | C51: 高圧 | D51: 都市ガス | E51: 61100
A52: =B52&C52&D52 -> 自立訓練（機能訓練）高圧プロパンガス | B52: 自立訓練（機能訓練） | C52: 高圧 | D52: プロパンガス | E52: 73600
A53: 自立訓練（機能訓練）低圧都市ガス | B53: 自立訓練（機能訓練） | C53: 低圧 | D53: 都市ガス | E53: 17400
A54: 自立訓練（機能訓練）低圧プロパンガス | B54: 自立訓練（機能訓練） | C54: 低圧 | D54: プロパンガス | E54: 29900
A55: =B55&C55&D55 -> 自立訓練（生活訓練）高圧都市ガス | B55: 自立訓練（生活訓練） | C55: 高圧 | D55: 都市ガス | E55: 61100
A56: =B56&C56&D56 -> 自立訓練（生活訓練）高圧プロパンガス | B56: 自立訓練（生活訓練） | C56: 高圧 | D56: プロパンガス | E56: 73600
A57: 自立訓練（生活訓練）低圧都市ガス | B57: 自立訓練（生活訓練） | C57: 低圧 | D57: 都市ガス | E57: 17400
A58: 自立訓練（生活訓練）低圧プロパンガス | B58: 自立訓練（生活訓練） | C58: 低圧 | D58: プロパンガス | E58: 29900
A59: =B59&C59&D59 -> 自立訓練（宿泊型）高圧都市ガス | B59: 自立訓練（宿泊型） | C59: 高圧 | D59: 都市ガス | E59: 61100
A60: =B60&C60&D60 -> 自立訓練（宿泊型）高圧プロパンガス | B60: 自立訓練（宿泊型） | C60: 高圧 | D60: プロパンガス | E60: 73600
A61: 自立訓練（宿泊型）低圧都市ガス | B61: 自立訓練（宿泊型） | C61: 低圧 | D61: 都市ガス | E61: 17400
A62: 自立訓練（宿泊型）低圧プロパンガス | B62: 自立訓練（宿泊型） | C62: 低圧 | D62: プロパンガス | E62: 29900
A63: =B63&C63&D63 -> 就労移行支援高圧都市ガス | B63: 就労移行支援 | C63: 高圧 | D63: 都市ガス | E63: 61100
A64: =B64&C64&D64 -> 就労移行支援高圧プロパンガス | B64: 就労移行支援 | C64: 高圧 | D64: プロパンガス | E64: 73600
A65: 就労移行支援低圧都市ガス | B65: 就労移行支援 | C65: 低圧 | D65: 都市ガス | E65: 17400
A66: 就労移行支援低圧プロパンガス | B66: 就労移行支援 | C66: 低圧 | D66: プロパンガス | E66: 29900
A67: =B67&C67&D67 -> 就労継続支援Ａ型高圧都市ガス | B67: 就労継続支援Ａ型 | C67: 高圧 | D67: 都市ガス | E67: 61100
A68: =B68&C68&D68 -> 就労継続支援Ａ型高圧プロパンガス | B68: 就労継続支援Ａ型 | C68: 高圧 | D68: プロパンガス | E68: 73600
A69: 就労継続支援Ａ型低圧都市ガス | B69: 就労継続支援Ａ型 | C69: 低圧 | D69: 都市ガス | E69: 17400
A70: 就労継続支援Ａ型低圧プロパンガス | B70: 就労継続支援Ａ型 | C70: 低圧 | D70: プロパンガス | E70: 29900
A71: =B71&C71&D71 -> 就労継続支援Ｂ型高圧都市ガス | B71: 就労継続支援Ｂ型 | C71: 高圧 | D71: 都市ガス | E71: 61100
A72: =B72&C72&D72 -> 就労継続支援Ｂ型高圧プロパンガス | B72: 就労継続支援Ｂ型 | C72: 高圧 | D72: プロパンガス | E72: 73600
A73: 就労継続支援Ｂ型低圧都市ガス | B73: 就労継続支援Ｂ型 | C73: 低圧 | D73: 都市ガス | E73: 17400
A74: 就労継続支援Ｂ型低圧プロパンガス | B74: 就労継続支援Ｂ型 | C74: 低圧 | D74: プロパンガス | E74: 29900
B77: 共同生活援助系 | C77: 支給単位 | D77: 高圧かつ都市ガスを利用している場合 | E77: 高圧かつプロパンガスを利用している場合 | F77: 低圧かつ都市ガスを利用している場合 | G77: 低圧かつプロパンガスを利用している場合
B78: 共同生活援助（介護サービス包括型） | C78: １住居定員１人当たり | D78: 6100 | E78: 7400 | F78: 3600 | G78: 4900
B79: 共同生活援助（日中サービス支援型）
B80: 共同生活援助（外部サービス利用型）
A82: key | B82: 共同生活援助系 | C82: 高圧・低圧 | D82: 都市ガス・プロパンガス | E82: 金額 | F82: プロパンガスの場合、控除
A83: =B83&C83&D83 -> 共同生活援助（介護サービス包括型）高圧都市ガス | B83: 共同生活援助（介護サービス包括型） | C83: 高圧 | D83: 都市ガス | E83: 6100 | F83: 0
A84: =B84&C84&D84 -> 共同生活援助（介護サービス包括型）高圧プロパンガス | B84: 共同生活援助（介護サービス包括型） | C84: 高圧 | D84: プロパンガス | E84: 7400 | F84: 3200
A85: 共同生活援助（介護サービス包括型）低圧都市ガス | B85: 共同生活援助（介護サービス包括型） | C85: 低圧 | D85: 都市ガス | E85: 3600 | F85: 0
A86: 共同生活援助（介護サービス包括型）低圧プロパンガス | B86: 共同生活援助（介護サービス包括型） | C86: 低圧 | D86: プロパンガス | E86: 4900 | F86: 3200
A87: 共同生活援助（日中サービス支援型）高圧都市ガス | B87: 共同生活援助（日中サービス支援型） | C87: 高圧 | D87: 都市ガス | E87: 6100 | F87: 0
A88: 共同生活援助（日中サービス支援型）高圧プロパンガス | B88: 共同生活援助（日中サービス支援型） | C88: 高圧 | D88: プロパンガス | E88: 7400 | F88: 3200
A89: 共同生活援助（日中サービス支援型）低圧都市ガス | B89: 共同生活援助（日中サービス支援型） | C89: 低圧 | D89: 都市ガス | E89: 3600 | F89: 0
A90: 共同生活援助（日中サービス支援型）低圧プロパンガス | B90: 共同生活援助（日中サービス支援型） | C90: 低圧 | D90: プロパンガス | E90: 4900 | F90: 3200
A91: 共同生活援助（外部サービス利用型）高圧都市ガス | B91: 共同生活援助（外部サービス利用型） | C91: 高圧 | D91: 都市ガス | E91: 6100 | F91: 0
A92: 共同生活援助（外部サービス利用型）高圧プロパンガス | B92: 共同生活援助（外部サービス利用型） | C92: 高圧 | D92: プロパンガス | E92: 7400 | F92: 3200
A93: 共同生活援助（外部サービス利用型）低圧都市ガス | B93: 共同生活援助（外部サービス利用型） | C93: 低圧 | D93: 都市ガス | E93: 3600 | F93: 0
A94: 共同生活援助（外部サービス利用型）低圧プロパンガス | B94: 共同生活援助（外部サービス利用型） | C94: 低圧 | D94: プロパンガス | E94: 4900 | F94: 3200
B99: 児通所系 | C99: 支給単位 | D99: 高圧かつ都市ガスを利用している場合 | E99: 低圧かつプロパンガスを利用している場合 | F99: 低圧かつ都市ガスを利用している場合 | G99: 低圧かつプロパンガスを利用している場合
B100: 児童発達支援 | C100: １事業所当たり | D100: 30550 | E100: 35200 | F100: 8700 | G100: 13350
B101: 児童発達支援センター
B102: 医療型児童発達支援センター | I102: 38700 | J102: 29650 | K102: 29600
B103: 放課後等デイサービス
A105: key | B105: 児通所系 | C105: 高圧・低圧 | D105: 都市ガス・プロパンガス | E105: 金額
A106: =B106&C106&D106 -> 児童発達支援高圧都市ガス | B106: 児童発達支援 | C106: 高圧 | D106: 都市ガス | E106: 30550
A107: =B107&C107&D107 -> 児童発達支援高圧プロパンガス | B107: 児童発達支援 | C107: 高圧 | D107: プロパンガス | E107: 35200
A108: 児童発達支援低圧都市ガス | B108: 児童発達支援 | C108: 低圧 | D108: 都市ガス | E108: 8700
A109: 児童発達支援低圧プロパンガス | B109: 児童発達支援 | C109: 低圧 | D109: プロパンガス | E109: 13350
A110: =B110&C110&D110 -> 児童発達支援センター高圧都市ガス | B110: 児童発達支援センター | C110: 高圧 | D110: 都市ガス | E110: 30550
A111: =B111&C111&D111 -> 児童発達支援センター高圧プロパンガス | B111: 児童発達支援センター | C111: 高圧 | D111: プロパンガス | E111: 35200
A112: 児童発達支援センター低圧都市ガス | B112: 児童発達支援センター | C112: 低圧 | D112: 都市ガス | E112: 8700
A113: 児童発達支援センター低圧プロパンガス | B113: 児童発達支援センター | C113: 低圧 | D113: プロパンガス | E113: 13350
A114: =B114&C114&D114 -> 医療型児童発達支援センター高圧都市ガス | B114: 医療型児童発達支援センター | C114: 高圧 | D114: 都市ガス | E114: 30550
A115: =B115&C115&D115 -> 医療型児童発達支援センター高圧プロパンガス | B115: 医療型児童発達支援センター | C115: 高圧 | D115: プロパンガス | E115: 35200
A116: 医療型児童発達支援センター低圧都市ガス | B116: 医療型児童発達支援センター | C116: 低圧 | D116: 都市ガス | E116: 8700
A117: 医療型児童発達支援センター低圧プロパンガス | B117: 医療型児童発達支援センター | C117: 低圧 | D117: プロパンガス | E117: 13350
A118: =B118&C118&D118 -> 放課後等デイサービス高圧都市ガス | B118: 放課後等デイサービス | C118: 高圧 | D118: 都市ガス | E118: 30550
A119: =B119&C119&D119 -> 放課後等デイサービス高圧プロパンガス | B119: 放課後等デイサービス | C119: 高圧 | D119: プロパンガス | E119: 35200
A120: 放課後等デイサービス低圧都市ガス | B120: 放課後等デイサービス | C120: 低圧 | D120: 都市ガス | E120: 8700
A121: =B121&C121&D121 -> 放課後等デイサービス低圧プロパンガス | B121: 放課後等デイサービス | C121: 低圧 | D121: プロパンガス | E121: 13350
B125: 児訪問系 | C125: 支給単位 | D125: ⑮ 都市ガスを利用している場合 | E125: ⑯ プロパンガスを利用している場合
B126: 児訪問系 | C126: １事業所当たり | D126: 4100 | E126: 3600
B127: 居宅訪問型児童発達支援
B128: 保育所等訪問支援
A130: key | B130: 児訪問系 | C130: 高圧・低圧 | D130: 都市ガス・プロパンガス | E130: 金額
A131: =B131&D131 -> 児訪問系都市ガス | B131: 児訪問系 | C131: - | D131: 都市ガス | E131: 4100
A132: =B132&D132 -> 児訪問系プロパンガス | B132: 児訪問系 | C132: - | D132: プロパンガス | E132: 3600
A133: 居宅訪問型児童発達支援都市ガス | B133: 居宅訪問型児童発達支援 | C133: - | D133: 都市ガス | E133: 4100
A134: 居宅訪問型児童発達支援プロパンガス | B134: 居宅訪問型児童発達支援 | C134: - | D134: プロパンガス | E134: 3600
A135: 保育所等訪問支援都市ガス | B135: 保育所等訪問支援 | C135: - | D135: 都市ガス | E135: 4100
A136: 保育所等訪問支援プロパンガス | B136: 保育所等訪問支援 | C136: - | D136: プロパンガス | E136: 3600
B138: ※１ 「共同生活援助系」の１住居当たりの補助額の支給単位は定員とし、１住居当たりの定員が２～５人の場合は６人とする。また、プロパンガスの契約の場合の１住居当たりの補助額については、
B139: 補助単価に定員数を乗じた額から、埼玉県で別途実施される「埼玉県ＬＰガス料金負担軽減事業補助金」において軽減されるプロパンガス利用者負担額２，３００円を減算した額とする。
A145: ガソリン区分①（12㎞未満） | B145: 12
A146: ガソリン区分②（12㎞以上22㎞未満） | B146: 22
A147: ガソリン区分③（22㎞以上）
